[Event "Portuguese-ch U14-20 2022"]
[Site "Fatima"]
[Date "2022.04.11"]
[Round "2.26"]
[White "Nalivaiko, Maksim"]
[Black "Korotkyi, Daniyil"]
[Result "1-0"]
[ECO "B00"]
[WhiteElo "1439"]
[BlackElo "1726"]
[Annotator "NA RC"]
[PlyCount "77"]
[EventDate "2022.04.10"]
[EventType "swiss"]
[EventCountry "POR"]
[SourceTitle "playchess.com"]
[Source "ChessBase"]
[SourceQuality "1"]
[TimeControl "5400+30"]

1. e4 {[%emt 0:00:01]} b6 {[%emt 0:03:05]} 2. Nc3 {[%emt 0:00:29]} Bb7 {[%emt 0:00:15]} 3. d4 {[%emt 0:00:16]} e6 {[%emt 0:00:22]} 4. Nf3 {[%emt 0:01:03]} Bb4 {[%emt 0:01:47]} 5. Bd3 {[%emt 0:00:50]} Ne7 {[%emt 0:09:09]} 6. Bd2 {[%emt 0:00:34]} d5 {[%emt 0:03:54]} 7. e5 {[%emt 0:01:35]} Nbc6 {[%emt 0:01:08]} 8. a3 {[%emt 0:00:28]} Bxc3 {[%emt 0:00:29]} 9. Bxc3 {[%emt 0:00:08]} Qd7 {[%emt 0:01:05]} 10. Qe2 {[%emt 0:00:52]} O-O-O {[%emt 0:03:01]} 11. O-O-O {[%emt 0:00:18]} h6 {[%emt 0:06:12]} 12. Bb5 {[%emt 0:01:40]} g5 {[%emt 0:06:38]} 13. g3 {[%emt 0:00:56]} Kb8 {[%emt 0:09:56]} 14. Kb1 {[%emt 0:02:41]} Ng6 {[%emt 0:03:29]} 15. Rde1 {[%emt 0:01:12]} Qe7 {[%emt 0:01:54]} 16. h4 {[%emt 0:01:26]} g4 {[%emt 0:04:15]} 17. Nd2 {[%emt 0:00:25]} h5 {[%emt 0:00:19]} 18. f3 {[%emt 0:01:17]} gxf3 {[%emt 0:02:09]} 19. Nxf3 {[%emt 0:01:34]} a5 {[%emt 0:06:41]} 20. Ng5 {[%emt 0:02:31]} Na7 {[%emt 0:02:23]} 21. Bd3 {[%emt 0:01:13]} Rdf8 {[%emt 0:01:17]} 22. Rhf1 {[%emt 0:00:18]} Bc6 {[%emt 0:08:33]} 23. Rf6 {[%emt 0:03:59]} Rh6 {[%emt 0:03:44]} 24. Bd2 {[%emt 0:01:33]} Rhh8 {[%emt 0:02:34]} 25. Bxg6 {[%emt 0:01:14]} fxg6 {[%emt 0:00:13]} 26. Rxg6 {[%emt 0:00:11]} Bb5 {[%emt 0:06:20]} 27. Qd1 {[%emt 0:00:14]} Rf2 {[%emt 0:07:35]} 28. Rxe6 Qf8 {[%emt 0:00:47]} 29. Bf4 {[%emt 0:04:10]} Bc4 {[%emt 0:03:24]} 30. Rf6 {[%emt 0:00:43]} Qe8 {[%emt 0:00:32]} 31. e6 {[%emt 0:02:42]} Nb5 {[%emt 0:01:31]} 32. Bxc7+ {[%emt 0:00:20]} Kxc7 {[%emt 0:00:45]} 33. Rxf2 {[%emt 0:00:05]} Nxa3+ {[%emt 0:00:53]} 34. bxa3 {[%emt 0:01:00]} Qb5+ {[%emt 0:00:27]} 35. Ka1 {[%emt 0:00:04]} Qa4 {[%emt 0:00:38]} 36. Qc1 {[%emt 0:01:37]} b5 {[%emt 0:00:24]} 37. Rf7+ {[%emt 0:03:30]} Kd8 {[%emt 0:00:40]} 38. e7+ {[%emt 0:00:28]} Ke8 {[%emt 0:00:31]} 39. Rf8+ {[%emt 0:00:21]} 1-0

[Event "Portuguese-ch U14-20 2022"]
[Site "Fatima"]
[Date "2022.04.11"]
[Round "2.27"]
[White "Paiva, Rodrigo Garcia"]
[Black "Camacho, Filipa Fernandes Bri"]
[Result "1-0"]
[ECO "D06"]
[WhiteElo "1667"]
[BlackElo "1467"]
[Annotator "NA RC"]
[PlyCount "85"]
[EventDate "2022.04.10"]
[EventType "swiss"]
[EventCountry "POR"]
[SourceTitle "playchess.com"]
[Source "ChessBase"]
[SourceQuality "1"]
[TimeControl "5400+30"]

1. d4 {[%emt 0:00:59]} d5 {[%emt 0:02:39]} 2. c4 {[%emt 0:00:28]} Bf5 {[%emt 0:03:08]} 3. Nc3 {[%emt 0:02:56]} Nf6 {[%emt 0:00:27]} 4. Qb3 {[%emt 0:04:04]} Nbd7 {[%emt 0:10:27]} 5. cxd5 {[%emt 0:08:09]} Nb6 {[%emt 0:01:56]} 6. g4 {[%emt 0:18:21]} Nxg4 {[%emt 0:12:52]} 7. e4 {[%emt 0:00:53]} Bd7 {[%emt 0:05:56]} 8. h3 {[%emt 0:15:02]} Nf6 {[%emt 0:04:45]} 9. e5 {[%emt 0:00:35]} Nfxd5 {[%emt 0:00:58]} 10. Nxd5 {[%emt 0:09:03]} Ba4 {[%emt 0:01:07]} 11. Nxc7+ {[%emt 0:01:06]} Qxc7 {[%emt 0:00:17]} 12. Bb5+ {[%emt 0:01:41]} Bxb5 {[%emt 0:00:15]} 13. Qxb5+ {[%emt 0:00:03]} Qd7 {[%emt 0:00:55]} 14. a4 {[%emt 0:03:37]} Qxb5 {[%emt 0:08:31]} 15. axb5 {[%emt 0:00:28]} e6 {[%emt 0:01:49]} 16. Nf3 {[%emt 0:02:18]} Bb4+ {[%emt 0:02:02]} 17. Ke2 {[%emt 0:00:50]} Nd5 {[%emt 0:01:25]} 18. Rg1 {[%emt 0:01:24]} Rg8 {[%emt 0:01:08]} 19. Be3 {[%emt 0:03:12]} Ke7 {[%emt 0:02:27]} 20. Ng5 {[%emt 0:04:11]} h6 {[%emt 0:01:00]} 21. Ne4 {[%emt 0:00:02]} b6 {[%emt 0:00:56]} 22. Rgc1 {[%emt 0:05:32]} Kd7 {[%emt 0:02:40]} 23. Nc3 {[%emt 0:03:43]} Nc7 {[%emt 0:01:01]} 24. Rcb1 {[%emt 0:00:32]} Rgc8 {[%emt 0:01:13]} 25. Kd3 {[%emt 0:00:43]} Nd5 {[%emt 0:05:42]} 26. Nxd5 exd5 {[%emt 0:00:06]} 27. Rg1 {[%emt 0:03:31]} g5 {[%emt 0:00:41]} 28. Ra4 {[%emt 0:01:32]} Be7 {[%emt 0:00:33]} 29. Rga1 {[%emt 0:00:16]} Rc7 {[%emt 0:00:59]} 30. f4 {[%emt 0:00:33]} Ke6 {[%emt 0:01:22]} 31. Ra6 {[%emt 0:00:36]} Rb7 {[%emt 0:00:14]} 32. Rc1 {[%emt 0:02:15]} Kf5 {[%emt 0:00:37]} 33. Rf1 {[%emt 0:00:31]} Kg6 {[%emt 0:00:45]} 34. f5+ {[%emt 0:00:57]} Kh5 {[%emt 0:02:07]} 35. Rc1 {[%emt 0:01:44]} Bd8 {[%emt 0:01:59]} 36. Rc6 {[%emt 0:01:23]} Bc7 {[%emt 0:01:55]} 37. Ra1 {[%emt 0:00:07]} Re8 {[%emt 0:00:49]} 38. h4 {[%emt 0:00:45]} Bd8 {[%emt 0:02:01]} 39. Rh1 {[%emt 0:01:05]} Kg4 {[%emt 0:03:01]} 40. hxg5 {[%emt 0:01:00]} hxg5 {[%emt 0:00:14]} 41. f6 {[%emt 0:00:15]} Rg8 {[%emt 0:07:24]} 42. Rh7 {[%emt 0:00:09]} Kf5 {[%emt 0:00:48]} 43. Rg7 {[%emt 0:00:25]} 1-0

[Event "Portuguese-ch U14-20 2022"]
[Site "Fatima"]
[Date "2022.04.11"]
[Round "2.28"]
[White "Lachever, Diogo Freire"]
[Black "Veleirinho, Tomas Carvalho"]
[Result "0-1"]
[ECO "D02"]
[WhiteElo "1182"]
[BlackElo "1641"]
[Annotator "NA RC"]
[PlyCount "97"]
[EventDate "2022.04.10"]
[EventType "swiss"]
[EventCountry "POR"]
[SourceTitle "playchess.com"]
[Source "ChessBase"]
[SourceQuality "1"]
[TimeControl "5400+30"]

1. d4 {[%emt 0:00:12]} d5 {[%emt 0:01:19]} 2. Nf3 {[%emt 0:00:04]} Nf6 {[%emt 0:01:18]} 3. g3 {[%emt 0:00:15]} e6 {[%emt 0:01:03]} 4. Bg2 {[%emt 0:00:38]} Be7 {[%emt 0:01:28]} 5. O-O {[%emt 0:00:58]} O-O {[%emt 0:00:53]} 6. c4 {[%emt 0:01:09]} dxc4 {[%emt 0:00:54]} 7. Nbd2 {[%emt 0:01:21]} Nbd7 {[%emt 0:15:45]} 8. Nxc4 {[%emt 0:00:57]} Rb8 {[%emt 0:00:57]} 9. Qc2 {[%emt 0:02:26]} b6 {[%emt 0:01:43]} 10. Nce5 {[%emt 0:01:52]} Nxe5 {[%emt 0:03:30]} 11. Nxe5 {[%emt 0:01:53]} Bb7 {[%emt 0:03:54]} 12. Nc6 {[%emt 0:02:54]} Bxc6 {[%emt 0:00:31]} 13. Qxc6 {[%emt 0:00:10]} Qd6 {[%emt 0:09:53]} 14. Qxd6 {[%emt 0:03:16]} cxd6 {[%emt 0:00:33]} 15. Bf4 {[%emt 0:03:43]} Rbc8 {[%emt 0:04:00]} 16. Rac1 {[%emt 0:00:37]} d5 {[%emt 0:02:09]} 17. Rxc8 {[%emt 0:01:09]} Rxc8 {[%emt 0:00:25]} 18. Rc1 {[%emt 0:00:11]} Rxc1+ {[%emt 0:01:09]} 19. Bxc1 {[%emt 0:00:06]} Bd6 {[%emt 0:00:35]} 20. f3 {[%emt 0:04:41]} h6 {[%emt 0:07:22]} 21. Kf2 {[%emt 0:00:46]} Kf8 {[%emt 0:01:24]} 22. e4 {[%emt 0:02:05]} Ke7 {[%emt 0:01:34]} 23. Ke2 {[%emt 0:00:32]} Kd7 {[%emt 0:09:41]} 24. Kd3 {[%emt 0:01:12]} Kc6 {[%emt 0:00:52]} 25. Kc3 {[%emt 0:02:00]} a5 {[%emt 0:01:25]} 26. a3 {[%emt 0:01:45]} Ne8 {[%emt 0:02:46]} 27. b4 {[%emt 0:00:52]} axb4+ {[%emt 0:09:26]} 28. axb4 {[%emt 0:00:36]} Kb5 {[%emt 0:04:49]} 29. Bf1+ {[%emt 0:01:25]} Ka4 {[%emt 0:00:24]} 30. b5 {[%emt 0:00:33]} Nc7 {[%emt 0:00:57]} 31. Be2 {[%emt 0:01:54]} Nxb5+ {[%emt 0:01:36]} 32. Bxb5+ {[%emt 0:01:10]} Kxb5 {[%emt 0:00:09]} 33. Kb3 {[%emt 0:00:21]} Bb4 {[%emt 0:00:43]} 34. g4 {[%emt 0:00:51]} g6 {[%emt 0:01:36]} 35. h3 {[%emt 0:00:46]} h5 {[%emt 0:00:34]} 36. gxh5 {[%emt 0:01:32]} gxh5 {[%emt 0:00:10]} 37. exd5 {[%emt 0:00:21]} Be1 {[%emt 0:01:06]} 38. Be3 {[%emt 0:00:57]} exd5 {[%emt 0:02:54]} 39. f4 {[%emt 0:01:07]} Kc6 {[%emt 0:01:07]} 40. f5 {[%emt 0:01:29]} b5 {[%emt 0:01:08]} 41. Bf4 {[%emt 0:01:19]} Kd7 {[%emt 0:00:16]} 42. Bg5 {[%emt 0:00:44]} Ba5 {[%emt 0:02:40]} 43. Bf6 {[%emt 0:54:23]} h4 {[%emt 0:01:08]} 44. Be7 {[%emt 0:00:00]} Be1 {[%emt 0:00:28]} 45. Bg5 {[%emt 0:00:00]} f6 {[%emt 0:00:24]} 46. Bf4 {[%emt 0:00:00]} Bg3 {[%emt 0:00:00]} 47. Kb4 {[%emt 0:00:00]} Ke7 {[%emt 0:00:00]} 48. Kxb5 {[%emt 0:00:53]} Bh2 {[%emt 0:00:00]} 49. Bxh2 {[%emt 0:00:00]} 0-1

[Event "Portuguese-ch U14-20 2022"]
[Site "Fatima"]
[Date "2022.04.11"]
[Round "2.29"]
[White "Pacetti Terra, Nicolas"]
[Black "Mourao, Martim Oliveira"]
[Result "1-0"]
[ECO "C54"]
[WhiteElo "1756"]
[BlackElo "1110"]
[Annotator "NA RC"]
[PlyCount "87"]
[EventDate "2022.04.10"]
[EventType "swiss"]
[EventCountry "POR"]
[SourceTitle "playchess.com"]
[Source "ChessBase"]
[SourceQuality "1"]
[TimeControl "5400+30"]

1. e4 {[%emt 0:00:02]} e5 {[%emt 0:01:14]} 2. Nf3 {[%emt 0:00:14]} Nc6 {[%emt 0:00:28]} 3. Bc4 {[%emt 0:00:58]} Bc5 {[%emt 0:00:59]} 4. c3 {[%emt 0:00:36]} Nf6 {[%emt 0:01:04]} 5. d3 {[%emt 0:00:08]} h6 {[%emt 0:03:33]} 6. O-O {[%emt 0:01:15]} O-O {[%emt 0:00:33]} 7. Nbd2 {[%emt 0:01:30]} d6 {[%emt 0:01:41]} 8. a4 {[%emt 0:01:20]} a5 {[%emt 0:01:55]} 9. Re1 {[%emt 0:01:08]} Bg4 {[%emt 0:05:37]} 10. h3 {[%emt 0:00:24]} Be6 {[%emt 0:00:54]} 11. Bb5 {[%emt 0:02:06]} Na7 {[%emt 0:04:35]} 12. d4 {[%emt 0:31:07]} exd4 {[%emt 0:04:34]} 13. cxd4 {[%emt 0:00:11]} Bb4 {[%emt 0:10:40]} 14. d5 {[%emt 0:09:18]} Bd7 {[%emt 0:00:36]} 15. Bd3 {[%emt 0:02:26]} b5 {[%emt 0:01:51]} 16. Nd4 {[%emt 0:08:32]} bxa4 {[%emt 0:11:03]} 17. Qc2 {[%emt 0:14:16]} Bc5 {[%emt 0:10:50]} 18. N2f3 {[%emt 0:00:19]} c6 {[%emt 0:00:59]} 19. dxc6 {[%emt 0:04:01]} Nxc6 {[%emt 0:02:21]} 20. Nxc6 {[%emt 0:00:34]} Bxc6 {[%emt 0:00:18]} 21. Be3 {[%emt 0:00:32]} Bxe3 {[%emt 0:02:14]} 22. Qxc6 {[%emt 0:00:12]} Qb6 {[%emt 0:00:40]} 23. Qxb6 {[%emt 0:01:03]} Bxb6 {[%emt 0:00:26]} 24. Rxa4 {[%emt 0:00:23]} Bc5 {[%emt 0:00:42]} 25. Bc4 {[%emt 0:00:21]} Rfe8 {[%emt 0:00:31]} 26. e5 {[%emt 0:10:46]} dxe5 {[%emt 0:05:05]} 27. Rxe5 {[%emt 0:00:25]} Bb4 {[%emt 0:02:05]} 28. b3 {[%emt 0:01:22]} Bc3 {[%emt 0:01:22]} 29. Rc5 {[%emt 0:01:57]} Bb4 {[%emt 0:01:54]} 30. Rc7 {[%emt 0:00:16]} Rac8 {[%emt 0:03:42]} 31. Bxf7+ {[%emt 0:01:22]} Kf8 {[%emt 0:01:01]} 32. Rxc8 {[%emt 0:00:21]} Rxc8 {[%emt 0:00:29]} 33. Bc4 {[%emt 0:00:45]} Nd7 {[%emt 0:00:20]} 34. Ra2 {[%emt 0:00:48]} Nb6 {[%emt 0:00:17]} 35. Ne5 {[%emt 0:00:24]} Bc3 {[%emt 0:00:31]} 36. Ng6+ {[%emt 0:00:07]} Ke8 {[%emt 0:00:31]} 37. Re2+ {[%emt 0:00:34]} Kd8 {[%emt 0:00:26]} 38. Bb5 {[%emt 0:02:19]} Nd7 {[%emt 0:02:40]} 39. Re7 {[%emt 0:02:40]} Nf6 {[%emt 0:01:57]} 40. Rxg7 {[%emt 0:00:29]} Rc5 {[%emt 0:01:27]} 41. Ba4 {[%emt 0:01:30]} Bd4 {[%emt 0:01:29]} 42. Rf7 {[%emt 0:00:59]} Rc1+ {[%emt 0:00:41]} 43. Kh2 {[%emt 0:00:05]} Bxf2 {[%emt 0:00:08]} 44. Rxf6 {[%emt 0:00:13]} 1-0

[Event "Portuguese-ch U14-20 2022"]
[Site "Fatima"]
[Date "2022.04.11"]
[Round "2.30"]
[White "Cabete, Manuel"]
[Black "Basilio, Rodrigo"]
[Result "0-1"]
[ECO "B33"]
[WhiteElo "1233"]
[BlackElo "1941"]
[Annotator "RC"]
[PlyCount "78"]
[EventDate "2022.04.10"]
[EventType "swiss"]
[EventCountry "POR"]
[SourceTitle "playchess.com"]
[Source "ChessBase"]
[SourceQuality "1"]
[TimeControl "5400+30"]

1. e4 c5 2. Nf3 Nc6 3. d4 cxd4 4. Nxd4 Nf6 5. Nc3 e6 6. Nxc6 bxc6 7. e5 Nd5 8. Nxd5 cxd5 9. Bd3 d6 10. Bf4 Be7 11. O-O O-O 12. Qh5 g6 13. Qh6 Re8 14. exd6 Bf8 15. Qg5 f6 16. Qg3 e5 17. Bd2 Qxd6 18. a3 f5 19. Bb4 Qf6 20. h4 f4 21. Qg5 Qxg5 22. hxg5 e4 23. Bb5 Re5 24. Rfd1 Be6 25. Bd2 e3 26. fxe3 fxe3 27. Bc3 d4 28. Bc6 dxc3 29. Bxa8 cxb2 30. Rab1 e2 31. Re1 Bc5+ 32. Kh2 Bxa3 33. Bf3 Ba2 34. Rxb2 Bxb2 35. Rxe2 Rxe2 36. Bxe2 Be5+ 37. Kh3 Kf7 38. Kg4 Ke6 39. Kf3 Bd5+ 0-1

[Event "Portuguese-ch U14-20 2022"]
[Site "Fatima"]
[Date "2022.04.11"]
[Round "2.31"]
[White "Gaspar, Bernardo"]
[Black "Bartolo, Filipe Diogo Correia"]
[Result "0-1"]
[ECO "A01"]
[WhiteElo "1365"]
[BlackElo "1869"]
[Annotator "NA RC"]
[PlyCount "60"]
[EventDate "2022.04.10"]
[EventType "swiss"]
[EventCountry "POR"]
[SourceTitle "playchess.com"]
[Source "ChessBase"]
[SourceQuality "1"]
[TimeControl "5400+30"]

{[%evp 9,43,-17,32767,32767,-4,-16,-8,-17,-11,0,-14,-10,-13,-18,32767,-38,-21,-27,-31,-44,-11,32767,32767,-35,-29,-28,-37,32767,-36,32767,32767,-98,-100,-90,-69,-552]} 1. b3 {[%emt 0:00:02]} d6 {[%emt 0:00:09]} 2. Bb2 {[%emt 0:00:05]} Nd7 {[%emt 0:00:04]} 3. e3 {[%emt 0:00:06]} Ngf6 {[%emt 0:01:14]} 4. f4 {[%emt 0:04:31]} g6 {[%emt 0:03:39]} 5. Nf3 {[%emt 0:02:14]} Bg7 {[%emt 0:00:41]} 6. Be2 {[%emt 0:04:23]} O-O {[%emt 0:00:33]} 7. O-O {[%emt 0:01:51]} Re8 {[%emt 0:03:00]} 8. Qe1 {[%emt 0:14:27]} e5 {[%emt 0:11:40]} 9. fxe5 {[%emt 0:07:23]} Nxe5 {[%emt 0:01:07]} 10. Nxe5 {[%emt 0:02:22]} dxe5 {[%emt 0:00:06]} 11. Nc3 {[%emt 0:07:12]} Bf5 {[%emt 0:02:11]} 12. Bf3 {[%emt 0:11:21]} e4 {[%emt 0:07:02]} 13. Be2 {[%emt 0:02:03]} c6 {[%emt 0:02:04]} 14. h3 {[%emt 0:07:12]} h5 {[%emt 0:00:17]} 15. Rd1 {[%emt 0:07:40]} Qd7 {[%emt 0:20:01]} 16. d4 {[%emt 0:05:58]} (16. Nb1 $11) 16... exd3 {[%emt 0:01:28]} 17. Bxd3 {[%emt 0:00:36]} Bxd3 {[%emt 0:00:25]} 18. Rxd3 {[%emt 0:01:55]} Qe7 {[%emt 0:02:11]} ({Much less strong is} 18... Nd5 19. Nxd5 cxd5 20. Bxg7 Kxg7 21. c4 $16) 19. Qe2 {[%emt 0:02:17]} Rad8 {[%emt 0:03:04]} 20. Rfd1 {[%emt 0:01:26]} Rxd3 {[%emt 0:01:03]} 21. Rxd3 {[%emt 0:01:01]} Nd7 {[%emt 0:08:39]} 22. Ba3 $19 {[%emt 0:06:28]} Qxa3 {[%emt 0:04:14]} 23. Rxd7 {[%emt 0:01:17]} Bxc3 {[%emt 0:00:44]} 24. Qc4 {[%emt 0:01:25]} Qc1+ {[%emt 0:00:12]} 25. Kh2 {[%emt 0:01:20]} Be5+ {[%emt 0:00:06]} 26. g3 {[%emt 0:00:16]} Rf8 {[%emt 0:00:14]} 27. Qe4 {[%emt 0:02:15]} Bb8 {[%emt 0:05:01]} 28. Rxf7 {[%emt 0:02:34]} Qd2+ {[%emt 0:00:41]} 29. Kg1 {[%emt 0:00:40]} Qe1+ {[%emt 0:00:11]} 30. Kg2 {[%emt 0:00:42]} Qxg3+ {[%emt 0:00:10]} 0-1

[Event "Portuguese-ch U14-20 2022"]
[Site "Fatima"]
[Date "2022.04.11"]
[Round "2.32"]
[White "Coelho, Goncalo Cavaz"]
[Black "Bento, David"]
[Result "1-0"]
[ECO "B31"]
[WhiteElo "1680"]
[BlackElo "1282"]
[Annotator "NA RC"]
[PlyCount "39"]
[EventDate "2022.04.10"]
[EventType "swiss"]
[EventCountry "POR"]
[SourceTitle "playchess.com"]
[Source "ChessBase"]
[SourceQuality "1"]
[TimeControl "5400+30"]

1. e4 {[%emt 0:00:04]} c5 {[%emt 0:00:08]} 2. Nf3 {[%emt 0:00:06]} Nc6 {[%emt 0:00:46]} 3. Bb5 {[%emt 0:00:08]} g6 {[%emt 0:00:08]} 4. O-O {[%emt 0:00:12]} Bg7 {[%emt 0:00:21]} 5. c3 {[%emt 0:00:21]} d6 {[%emt 0:00:18]} 6. d4 {[%emt 0:00:55]} cxd4 {[%emt 0:00:23]} 7. cxd4 {[%emt 0:00:10]} Bd7 {[%emt 0:00:10]} 8. Nc3 {[%emt 0:00:41]} Nf6 {[%emt 0:03:51]} 9. Re1 {[%emt 0:01:46]} Qc7 {[%emt 0:06:11]} 10. e5 {[%emt 0:10:11]} dxe5 {[%emt 0:02:25]} 11. dxe5 {[%emt 0:00:16]} Ng4 {[%emt 0:11:29]} 12. Nd5 {[%emt 0:01:53]} Qb8 {[%emt 0:02:38]} 13. Bg5 {[%emt 0:02:43]} h6 {[%emt 0:02:15]} 14. Bxe7 {[%emt 0:04:57]} Nxe7 {[%emt 0:01:18]} 15. Bxd7+ {[%emt 0:04:25]} Kxd7 {[%emt 0:01:58]} 16. Nf6+ {[%emt 0:00:11]} Kc6 {[%emt 0:03:31]} 17. Rc1+ {[%emt 0:00:17]} Kb6 {[%emt 0:04:44]} 18. Qb3+ {[%emt 0:00:12]} Ka6 {[%emt 0:00:16]} 19. Qa4+ {[%emt 0:00:13]} Kb6 {[%emt 0:00:09]} 20. Nd7# {[%emt 0:00:08]} 1-0

[Event "Portuguese-ch U14-20 2022"]
[Site "Fatima"]
[Date "2022.04.11"]
[Round "2.33"]
[White "Marques, Afonso Mendes Pereir"]
[Black "Cordeiro, Joao Pedro Pereira"]
[Result "1-0"]
[ECO "C44"]
[WhiteElo "1550"]
[BlackElo "1178"]
[Annotator "NA RC"]
[PlyCount "105"]
[EventDate "2022.04.10"]
[EventType "swiss"]
[EventCountry "POR"]
[SourceTitle "playchess.com"]
[Source "ChessBase"]
[SourceQuality "1"]
[TimeControl "5400+30"]

1. e4 e5 2. Nf3 Nc6 3. d4 exd4 4. Bc4 d6 5. Nxd4 Nxd4 6. Qxd4 Qf6 7. Qd3 Be6 8. Nc3 Bxc4 9. Qxc4 c6 10. O-O Qe6 11. Qb3 Qxb3 12. axb3 Nf6 13. Re1 Nd7 14. Bf4 Ne5 15. Bg3 h5 16. f4 h4 17. Bf2 Ng4 18. Rxa7 Rxa7 19. Bxa7 f6 20. Bb6 Rh5 21. h3 Nh6 22. Ra1 d5 23. exd5 cxd5 24. Rd1 Kd7 25. Bf2 Kc6 26. Re1 Bd6 27. Ne2 Nf5 28. Rd1 Rh8 29. Nc3 Ne7 30. f5 Be5 31. Bd4 Bg3 32. Bf2 Bxf2+ 33. Kxf2 Rh5 34. Ne2 Nxf5 35. Nf4 Rh8 36. Nxd5 Re8 37. Nf4 Ng3 38. Rd4 g5 39. Rc4+ Kd6 40. Nd3 f5 41. Rd4+ Kc6 42. Nc1 Re5 43. Kf3 b5 44. c4 b4 45. Nd3 Re2 46. Rd5 Re8 47. Nxb4+ Kc7 48. Nd3 Rf8 49. b4 Ne4 50. Ke3 Re8 51. Re5 Rf8 52. Nc5 Nd6 53. Ne6+ 1-0

[Event "Portuguese-ch U14-20 2022"]
[Site "Fatima"]
[Date "2022.04.11"]
[Round "2.34"]
[White "Mendes, Simao Pedro Garcia"]
[Black "Areal, Maria Beatriz Moura"]
[Result "0-1"]
[ECO "A58"]
[WhiteElo "1147"]
[BlackElo "1343"]
[Annotator "NA RC"]
[PlyCount "110"]
[EventDate "2022.04.10"]
[EventType "swiss"]
[EventCountry "POR"]
[SourceTitle "playchess.com"]
[Source "ChessBase"]
[SourceQuality "1"]
[TimeControl "5400+30"]

1. d4 Nf6 2. c4 c5 3. d5 b5 4. cxb5 a6 5. bxa6 Bxa6 6. Nf3 d6 7. g3 g6 8. Bg2 Bg7 9. O-O O-O 10. Nc3 Nbd7 11. Re1 Qa5 12. Bd2 Rfb8 13. Rb1 Ne8 14. a3 Nc7 15. e4 Bd3 16. b4 Qxa3 17. Rb3 Qa7 18. bxc5 Rxb3 19. Qxb3 Nxc5 20. Qd1 Rb8 21. Bf1 N7a6 22. Bxd3 Nxd3 23. Re3 Nac5 24. Ne1 Nb2 25. Qe2 Bh6 26. Rf3 Bxd2 27. Qxd2 Nc4 28. Qd4 Ne5 29. Re3 Qa5 30. Re2 Nf3+ 31. Nxf3 Nb3 32. Qc4 Nc1 33. Rc2 Nb3 34. Ra2 Qd8 35. Rb2 Nc5 36. Rxb8 Qxb8 37. Qb5 Qa8 38. Qb2 Qa7 39. Kg2 Nd3 40. Qd2 Nc5 41. Ne1 Qb7 42. Nd3 Nd7 43. f4 Qb6 44. Ne2 Qa7 45. Qc2 Kg7 46. Nb4 Nc5 47. Nc6 Qb7 48. Qc3+ Kg8 49. Qb4 Qa6 50. Nc3 Qd3 51. Kh3 Qf1+ 52. Kh4 Qg2 53. h3 Qf3 54. Qb8+ Kg7 55. Nxe7 Qh5# 0-1

[Event "Portuguese-ch U14-20 2022"]
[Site "Fatima"]
[Date "2022.04.11"]
[Round "2.35"]
[White "Azevedo Junior, Joao Nunes"]
[Black "Moldovan, Andre Dragos"]
[Result "1/2-1/2"]
[ECO "C54"]
[WhiteElo "1831"]
[BlackElo "1369"]
[Annotator "NA RC"]
[PlyCount "65"]
[EventDate "2022.04.10"]
[EventType "swiss"]
[EventCountry "POR"]
[SourceTitle "playchess.com"]
[Source "ChessBase"]
[SourceQuality "1"]
[TimeControl "5400+30"]

1. e4 e5 2. Nf3 Nc6 3. Bc4 Bc5 4. c3 Nf6 5. d3 d6 6. b4 Bb6 7. a4 a6 8. Qb3 O-O 9. h3 h6 10. Nbd2 Ne7 11. Nf1 Ng6 12. Ne3 Ba7 13. O-O Nh5 14. Kh2 Nhf4 15. b5 a5 16. Nd5 Be6 17. Nxf4 Bxc4 18. Qxc4 Nxf4 19. Be3 Bb6 20. g3 Ne6 21. Bxb6 cxb6 22. d4 exd4 23. cxd4 Rc8 24. Qd3 Qd7 25. Rac1 Rxc1 26. Rxc1 Rc8 27. Qe3 Rxc1 28. Qxc1 Qe7 29. Kg2 f6 30. Qc4 Kh7 31. Qd3 Kg8 32. Qc4 Kh7 33. Qd3 1/2-1/2

[Event "Portuguese-ch U14-20 2022"]
[Site "Fatima"]
[Date "2022.04.11"]
[Round "2.36"]
[White "Fernandes, Tiago Joao Carneiro"]
[Black "Cabral, Francisco Manuel N V"]
[Result "1/2-1/2"]
[ECO "B13"]
[WhiteElo "1336"]
[BlackElo "1121"]
[Annotator "NA RC"]
[PlyCount "70"]
[EventDate "2022.04.10"]
[EventType "swiss"]
[EventCountry "POR"]
[SourceTitle "playchess.com"]
[Source "ChessBase"]
[SourceQuality "1"]
[TimeControl "5400+30"]

1. e4 c6 2. d4 d5 3. exd5 cxd5 4. c4 Nf6 5. Nc3 Bf5 6. Nf3 e6 7. Bf4 Be7 8. Be2 dxc4 9. Bxc4 Qb6 10. Bb3 Qa6 11. Ba4+ Nc6 12. Nb5 Bb4+ 13. Nd2 Bxd2+ 14. Bxd2 Qb6 15. Nd6+ Ke7 16. Nxf5+ exf5 17. Bc3 Rhe8 18. O-O Rad8 19. Re1+ Kf8 20. Rxe8+ Rxe8 21. d5 Rd8 22. d6 Ne4 23. Qe1 Rxd6 24. Bxc6 Rxc6 25. Bb4+ Kg8 26. Rd1 Rc2 27. Rd2 Rxd2 28. Bxd2 Qxb2 29. Bf4 Qc3 30. Qd1 g5 31. Be3 f6 32. Qd8+ Kg7 33. Qe7+ Kg8 34. Qe8+ Kg7 35. Qe7+ Kg8 1/2-1/2

[Event "Portuguese-ch U14-20 2022"]
[Site "Fatima"]
[Date "2022.04.11"]
[Round "2.37"]
[White "Caturra, Rafael Dias"]
[Black "Cabral, Guilherme"]
[Result "1/2-1/2"]
[ECO "A17"]
[WhiteElo "1086"]
[BlackElo "1210"]
[Annotator "NA RC"]
[PlyCount "73"]
[EventDate "2022.04.10"]
[EventType "swiss"]
[EventCountry "POR"]
[SourceTitle "playchess.com"]
[Source "ChessBase"]
[SourceQuality "1"]
[TimeControl "5400+30"]

1. c4 e6 2. Nc3 Nf6 3. g3 Bb4 4. Bg2 O-O 5. Nf3 d5 6. cxd5 Nxd5 7. O-O c5 8. Nxd5 Qxd5 9. d3 Nc6 10. Bd2 Bxd2 11. Qxd2 b6 12. Nd4 Qxd4 13. Bxc6 Rb8 14. a3 Bb7 15. Bxb7 Rxb7 16. Qc3 Rc7 17. Rfc1 Rfc8 18. Rc2 h6 19. Rac1 Qd6 20. Qd2 c4 21. dxc4 Qxd2 22. Rxd2 Rxc4 23. Rxc4 Rxc4 24. e3 Rc7 25. Kg2 Kh7 26. Kf3 Kg6 27. h3 Kf5 28. g4+ Ke5 29. h4 f6 30. e4 g6 31. Ke3 f5 32. f4+ Kf6 33. exf5 exf5 34. g5+ hxg5 35. hxg5+ Ke7 36. Kf3 Rc6 37. Ke3 1/2-1/2